fUSD/lending_fUSD_20240920
["ID","MTS","AMOUNT","RATE_DAILY","PERIOD"]
[338620252,1726804672627,500.0,0.00022999,120]
[338620253,1726804672768,386.83516886,0.00022999,120]
[338620254,1726804672890,500.0,0.00022999,120]
[338620255,1726804673226,500.0,0.00022999,120]
[338620256,1726804673481,500.0,0.00022999,120]
[338620257,1726804673635,500.0,0.00022999,120]
[338620258,1726804673743,230.24132656,0.00022999,120]
[338620259,1726804673892,500.0,0.00022999,120]
[338620260,1726804674269,210.33649791,0.00022999,120]
[338620263,1726804675539,500.0,0.00022999,120]
[338620264,1726804675761,500.0,0.00022999,120]
[338620265,1726804675832,500.0,0.00022999,120]
[338620266,1726804676019,500.0,0.00022999,120]
[338620267,1726804676098,500.0,0.00022999,120]
[338620268,1726804676138,500.0,0.00022999,120]
[338620269,1726804676301,500.0,0.00022999,120]
[338620270,1726804676341,500.0,0.00022999,120]
[338620272,1726804676554,500.0,0.00022999,120]
[338620273,1726804676595,500.0,0.00022999,120]
[338620274,1726804676666,500.0,0.00022999,120]
[338620275,1726804676716,500.0,0.00022999,120]
[338620277,1726804676755,500.0,0.00022999,120]
[338620278,1726804676795,500.0,0.00022999,120]
[338620279,1726804676833,500.0,0.00022999,120]
[338620280,1726804676869,500.0,0.00022999,120]
[338620281,1726804676906,500.0,0.00022999,120]
[338620282,1726804676951,500.0,0.00022999,120]
[338620283,1726804677003,500.0,0.00022999,120]
[338620285,1726804677040,500.0,0.00022999,120]
[338620286,1726804677079,500.0,0.00022999,120]
[338620287,1726804677116,500.0,0.00022999,120]
[338620288,1726804677155,500.0,0.00022999,120]
[338620289,1726804677191,500.0,0.00022999,120]
[338620290,1726804677240,500.0,0.00022999,120]
[338620291,1726804677277,500.0,0.00022999,120]
[338620292,1726804677315,500.0,0.00022999,120]
[338620293,1726804677355,597.17297575,0.00022999,120]
[338620294,1726804677395,500.0,0.00022999,120]
[338620295,1726804677431,270.13504409,0.00022999,120]
[338620296,1726804677466,384.4791868,0.00022999,120]
[338620297,1726804677502,500.0,0.00022999,120]
[338620299,1726804677626,500.0,0.00022999,120]
[338620300,1726804677717,525.35202099,0.00022999,120]
[338620302,1726804677882,500.0,0.00022999,120]
[338620304,1726804678144,500.0,0.00022999,120]
[338620305,1726804678412,500.0,0.00022999,120]
[338620307,1726804678671,500.0,0.00022999,120]
[338620309,1726804678820,501.89477341,0.00022999,120]
[338620310,1726804678945,453.73251205,0.00022999,120]
[338620317,1726804679885,500.0,0.00022999,120]
[338620319,1726804680187,500.0,0.00022999,120]
[338620320,1726804680452,500.0,0.00022999,120]
[338620321,1726804680710,500.0,0.00022999,120]
[338620323,1726804680973,500.0,0.00022999,120]
[338620326,1726804681238,500.0,0.00022999,120]
[338620330,1726804681619,500.0,0.00022999,120]
[338620332,1726804681762,500.0,0.00022999,120]
[338620335,1726804681887,500.0,0.00022999,120]
[338620337,1726804682090,500.0,0.00022999,120]
[338620338,1726804682129,500.0,0.00022999,120]
[338620339,1726804682257,501.15355605,0.00022999,120]
[338620341,1726804682360,500.0,0.00022999,120]
[338620343,1726804682606,500.0,0.00022999,120]
[338620344,1726804682751,500.0,0.00022999,120]
[338620346,1726804682854,500.0,0.00022999,120]
[338620347,1726804683033,500.0,0.00022999,120]
[338620348,1726804683111,500.0,0.00022999,120]
[338620349,1726804683325,500.0,0.00022999,120]
[338620350,1726804683400,608.16442187,0.00022999,120]
[338620351,1726804683590,500.0,0.00022999,120]
[338620352,1726804683862,500.0,0.00022999,120]
[338620353,1726804684046,501.08951492,0.00022999,120]
[338620354,1726804684116,500.0,0.00022999,120]
[338620355,1726804684476,500.0,0.00022999,120]
[338620356,1726804684672,500.0,0.00022999,120]
[338620357,1726804684765,574.07433359,0.00022999,120]
[338620358,1726804684932,500.0,0.00022999,120]
[338620360,1726804685576,500.0,0.00022999,120]
[338620361,1726804685615,500.0,0.00022999,120]
[338620363,1726804685834,615.02,0.00022999,120]
[338620364,1726804685945,541.41490419,0.00022999,120]
[338620366,1726804686063,501.01271394,0.00022999,120]
[338620368,1726804686311,500.0,0.00022999,120]
[338620369,1726804686395,500.0,0.00022999,120]
[338620371,1726804686592,500.0,0.00022999,120]
[338620372,1726804686658,633.81850452,0.00022999,120]
[338620374,1726804686879,616.28254941,0.00022999,120]
[338620381,1726804688459,500.0,0.00022999,120]
[338620384,1726804688584,500.0,0.00022999,120]
[338620387,1726804688855,500.0,0.00022999,120]
[338620389,1726804689103,500.0,0.00022999,120]
[338620390,1726804689371,500.0,0.00022999,120]
[338620394,1726804689626,500.0,0.00022999,120]
[338620396,1726804689880,500.0,0.00022999,120]
[338620398,1726804689925,500.0,0.00022999,120]
[338620399,1726804689968,500.97786148,0.00022999,120]
[338620401,1726804690217,500.0,0.00022999,120]
[338620402,1726804690252,500.0,0.00022999,120]
[338620404,1726804690484,190.02408584,0.00022999,120]
[338620405,1726804690529,500.0,0.00022999,120]
[338620407,1726804690897,500.0,0.00022999,120]
[338620409,1726804691179,500.0,0.00022999,120]
[338620411,1726804691438,421.73429944,0.00022999,120]
[338620422,1726804693044,501.11699921,0.00022999,120]
[338620426,1726804693380,500.0,0.00022999,120]
[338620431,1726804694010,500.0,0.00022999,120]
[338620432,1726804694282,500.0,0.00022999,120]
[338620433,1726804694637,502.07734504,0.00022999,120]
[338620434,1726804694690,466.0958099,0.00022999,120]
[338620435,1726804694732,501.61580926,0.00022999,120]
[338620436,1726804695020,501.28264609,0.00022999,120]
[338620437,1726804696403,501.16106058,0.00022999,120]
[338620438,1726804696908,500.0,0.00022999,120]
[338620439,1726804697202,500.0,0.00022999,120]
[338620440,1726804697475,500.0,0.00022999,120]
[338620441,1726804697717,307.55534374,0.00022999,120]
[338620442,1726804698704,500.0,0.00022999,120]
[338620443,1726804699389,445.02706001,0.00022999,120]
[338620444,1726804700086,502.04554604,0.00022999,120]
[338620445,1726804702520,500.0,0.00022999,120]
[338620446,1726804702773,502.18079448,0.00022999,120]
[338620447,1726804702812,500.0,0.00022999,120]
[338620448,1726804703034,500.0,0.00022999,120]
[338620449,1726804703257,500.0,0.00022999,120]
[338620450,1726804703293,500.0,0.00022999,120]
[338620451,1726804703345,346.56367259,0.00022999,120]
[338620452,1726804703505,500.0,0.00022999,120]
[338620453,1726804703626,500.0,0.00022999,120]
[338620454,1726804703774,500.0,0.00022999,120]
[338620455,1726804703809,501.33273303,0.00022999,120]
[338620456,1726804703965,500.0,0.00022999,120]
[338620457,1726804704073,500.0,0.00022999,120]
[338620458,1726804704251,500.0,0.00022999,120]
[338620459,1726804704362,500.0,0.00022999,120]
[338620460,1726804704494,500.0,0.00022999,120]
[338620461,1726804704817,185.63202701,0.00022999,120]
[338620462,1726804704872,367.17629923,0.00022999,120]
[338620463,1726804706802,500.0,0.00022999,120]
[338620464,1726804707058,500.0,0.00022999,120]
[338620465,1726804707321,500.0,0.00022999,120]
[338620466,1726804707879,500.0,0.00022999,120]
[338620467,1726804707920,500.0,0.00022999,120]
[338620468,1726804708147,519.57381479,0.00022999,120]
[338620469,1726804708207,500.0,0.00022999,120]
[338620470,1726804708316,500.0,0.00022999,120]
[338620471,1726804708466,500.0,0.00022999,120]
[338620472,1726804708868,500.0,0.00022999,120]
[338620473,1726804709123,280.96924881,0.00022999,120]
[338620474,1726804709466,502.86267468,0.00022999,120]
[338620475,1726804710366,501.0036063,0.00022999,120]
[338620476,1726804712240,501.01306969,0.00022999,120]
[338620477,1726804712459,500.0,0.00022999,120]
[338620478,1726804712718,500.0,0.00022999,120]
[338620479,1726804712898,501.4117477,0.00022999,120]
[338620480,1726804712969,500.0,0.00022999,120]
[338620481,1726804713227,500.0,0.00022999,120]
[338620482,1726804713363,500.0,0.00022999,120]
[338620483,1726804713483,228.16240626,0.00022999,120]
[338620484,1726804713628,500.0,0.00022999,120]
[338620485,1726804713887,187.53477093,0.00022999,120]
[338620486,1726804715011,592.16558222,0.00022999,120]
[338620487,1726804715279,500.0,0.00022999,120]
[338620488,1726804715577,500.0,0.00022999,120]
[338620489,1726804715850,553.43583668,0.00022999,120]
[338620490,1726804717070,521.49157495,0.00022999,120]
[338620491,1726804721441,500.0,0.00022999,120]
[338620492,1726804721719,241.35884959,0.00022999,120]
[338620493,1726804723673,500.0,0.00022999,120]
[338620494,1726804723830,500.0,0.00022999,120]
[338620495,1726804723956,297.02682648,0.00022999,120]
[338620496,1726804724076,500.0,0.00022999,120]
[338620497,1726804724327,500.0,0.00022999,120]
[338620498,1726804724579,500.0,0.00022999,120]
[338620499,1726804724838,500.0,0.00022999,120]
[338620500,1726804725208,500.0,0.00022999,120]
[338620501,1726804725346,500.0,0.00022999,120]
[338620502,1726804725609,500.0,0.00022999,120]
[338620503,1726804725859,500.0,0.00022999,120]
[338620504,1726804726131,500.0,0.00022999,120]
[338620505,1726804726408,500.0,0.00022999,120]
[338620506,1726804726840,500.0,0.00022999,120]
[338620507,1726804726970,500.0,0.00022999,120]
[338620508,1726804727251,500.0,0.00022999,120]
[338620509,1726804727496,500.0,0.00022999,120]
[338620510,1726804727744,500.0,0.00022999,120]
[338620511,1726804728011,500.0,0.00022999,120]
[338620512,1726804728280,500.0,0.00022999,120]
[338620513,1726804728546,500.0,0.00022999,120]
[338620514,1726804729160,332.47,0.00022999,120]
[338620515,1726804733008,500.69460249,0.00022999,120]
[338620516,1726804736180,502.40530185,0.00022999,120]
[338620517,1726804738205,501.54730932,0.00022999,120]
[338620518,1726804740625,500.0,0.00022999,120]
[338620519,1726804741002,500.0,0.00022999,120]
[338620520,1726804741257,317.0554201,0.00022999,120]
[338620521,1726804746831,501.09810604,0.00022999,120]
[338620522,1726804750613,500.0,0.00022999,120]
[338620523,1726804750875,500.0,0.00022999,120]
[338620524,1726804751167,500.0,0.00022999,120]
[338620525,1726804751829,200.80141033,0.00022999,120]
[338620526,1726804756911,514.88927373,0.00022999,120]
[338620527,1726804759403,501.53521374,0.00022999,120]
[338620528,1726804761967,468.88187419,0.00022999,120]
[338620529,1726804763926,500.0,0.00022999,120]
[338620530,1726804764192,500.0,0.00022999,120]
[338620531,1726804764450,377.07031384,0.00022999,120]
[338620532,1726804766456,633.38163446,0.00022999,120]
[338620533,1726804768305,500.0,0.00022999,120]
[338620534,1726804768578,500.0,0.00022999,120]
[338620535,1726804768825,500.0,0.00022999,120]
[338620536,1726804769075,500.0,0.00022999,120]
[338620537,1726804769328,188.39390372,0.00022999,120]
[338620538,1726804773289,502.08785286,0.00022999,120]
[338620539,1726804775148,500.0,0.00022999,120]
[338620540,1726804775449,160.85363917,0.00022999,120]
[338620541,1726804780779,501.54790562,0.00022999,120]
[338620542,1726804781064,501.79627856,0.00022999,120]
[338620543,1726804791464,500.0,0.00022999,120]
[338620544,1726804791732,500.0,0.00022999,120]
[338620545,1726804792092,551.70151986,0.00022999,120]
[338620546,1726804793742,502.28985574,0.00022999,120]
[338620547,1726804794263,501.07883534,0.00022999,120]
[338620548,1726804798078,500.0,0.00022999,120]
[338620549,1726804798215,589.79850613,0.00022999,120]
[338620550,1726804800233,500.76869798,0.00022999,120]
[338620551,1726804800606,500.8727533,0.00022999,120]
[338620552,1726804802015,518.49910494,0.00022999,120]
[338620553,1726804802810,501.22165211,0.00022999,120]
[338620554,1726804802849,500.0,0.00022999,120]
[338620555,1726804803436,500.0,0.00022999,120]
[338620556,1726804803736,500.0,0.00022999,120]
[338620557,1726804804028,316.85537299,0.00022999,120]
[338620558,1726804804065,157.88,0.00010031,2]
[338620559,1726804804241,157.88,0.00012294,2]
[338620560,1726804805409,638.33633861,0.00022999,120]
[338620561,1726804806595,505.37479119,0.00022999,120]
[338620562,1726804807514,500.0,0.00022999,120]
[338620563,1726804807788,303.69,0.00022999,120]
[338620564,1726804807867,500.0,0.00022999,120]
[338620565,1726804808312,615.02909483,0.00022999,120]
[338620566,1726804809195,500.0,0.00022999,120]
[338620567,1726804809446,500.0,0.00022999,120]
[338620568,1726804809488,500.0,0.00022999,120]
[338620569,1726804809732,500.0,0.00022999,120]
[338620570,1726804809798,500.0,0.00022999,120]
[338620571,1726804809985,337.86129372,0.00022999,120]
[338620572,1726804810035,500.0,0.00022999,120]
[338620573,1726804810308,500.0,0.00022999,120]
[338620574,1726804810596,500.0,0.00022999,120]
[338620575,1726804810872,500.0,0.00022999,120]
[338620576,1726804811149,500.0,0.00022999,120]
[338620577,1726804811294,534.15124937,0.00022999,120]
[338620578,1726804811436,500.0,0.00022999,120]
[338620579,1726804811698,500.0,0.00022999,120]
[338620580,1726804811975,293.72445402,0.00022999,120]
[338620581,1726804814101,500.0,0.00022999,120]
[338620582,1726804814359,500.0,0.00022999,120]
[338620583,1726804814663,577.46892542,0.00022999,120]
[338620584,1726804816402,500.0,0.00022999,120]
[338620585,1726804816655,500.0,0.00022999,120]
[338620586,1726804816895,500.0,0.00022999,120]
[338620587,1726804817273,500.0,0.00022999,120]
[338620588,1726804817355,500.0,0.00022999,120]
[338620589,1726804817521,500.0,0.00022999,120]
[338620590,1726804817619,500.0,0.00022999,120]
[338620591,1726804817670,635.26569213,0.00022999,120]
[338620592,1726804817782,500.0,0.00022999,120]
[338620593,1726804817913,500.0,0.00022999,120]
[338620594,1726804818084,500.0,0.00022999,120]
[338620595,1726804818173,241.06758962,0.00022999,120]
[338620596,1726804818547,265.88636047,0.00022999,120]
[338620597,1726804819945,500.52846128,0.00022999,120]
[338620598,1726804820290,500.0,0.00022999,120]
[338620599,1726804820332,500.0,0.00022999,120]
[338620600,1726804820577,499.22002796,0.00022999,120]
[338620601,1726804820630,500.0,0.00022999,120]
[338620602,1726804820933,192.64901124,0.00022999,120]
[338620603,1726804820983,540.74407563,0.00022999,120]
[338620604,1726804821028,500.0,0.00022999,120]
[338620605,1726804821346,500.0,0.00022999,120]
[338620606,1726804821616,500.0,0.00022999,120]
[338620607,1726804821897,500.0,0.00022999,120]
[338620608,1726804822026,500.77412287,0.00022999,120]
[338620609,1726804822138,500.0,0.00022999,120]
[338620610,1726804822425,500.0,0.00022999,120]
[338620611,1726804822692,500.0,0.00022999,120]
[338620612,1726804822996,222.58809861,0.00022999,120]
[338620613,1726804823197,501.29581394,0.00022999,120]
[338620614,1726804824162,501.14017243,0.00022999,120]
[338620615,1726804826010,500.0,0.00022999,120]
[338620616,1726804826180,500.7633476,0.00022999,120]
[338620617,1726804826269,500.0,0.00022999,120]
[338620618,1726804826552,500.0,0.00022999,120]
[338620619,1726804826876,498.42512857,0.00022999,120]
[338620620,1726804828311,500.82723437,0.00022999,120]
[338620621,1726804828806,500.0,0.00022999,120]
[338620622,1726804828929,399.63755927,0.00022999,120]
[338620623,1726804829383,501.18284853,0.00022999,120]
[338620624,1726804829763,500.0,0.00022999,120]
[338620625,1726804830052,500.0,0.00022999,120]
[338620626,1726804830294,500.0,0.00022999,120]
[338620627,1726804830569,500.0,0.00022999,120]
[338620628,1726804830849,338.04981367,0.00022999,120]
[338620629,1726804831364,508.77787551,0.00022999,120]
[338620630,1726804832121,505.57129659,0.00022999,120]
[338620631,1726804832907,500.0,0.00022999,120]
[338620632,1726804833159,500.0,0.00022999,120]
[338620633,1726804833482,500.0,0.00022999,120]
[338620634,1726804833797,500.0,0.00022999,120]
[338620635,1726804834066,500.0,0.00022999,120]
[338620636,1726804834338,500.0,0.00022999,120]
[338620637,1726804834557,501.0317633,0.00022999,120]
[338620638,1726804834617,606.8046674,0.00022999,120]
[338620639,1726804835417,500.0,0.00022999,120]
[338620640,1726804835687,500.0,0.00022999,120]
[338620641,1726804835967,500.0,0.00022999,120]
[338620642,1726804836228,500.0,0.00022999,120]
[338620643,1726804836500,500.0,0.00022999,120]
[338620644,1726804836774,500.0,0.00022999,120]
[338620645,1726804836985,500.0,0.00022999,120]
[338620646,1726804837044,500.93067942,0.00022999,120]
[338620647,1726804837114,500.0,0.00022999,120]
[338620648,1726804837237,588.48307197,0.00022999,120]
[338620649,1726804837369,641.42541503,0.00022999,120]
[338620650,1726804837745,174.94,0.00022999,120]
[338620651,1726804838479,501.34086911,0.00022999,120]
[338620652,1726804840110,502.07776673,0.00022999,120]
[338620653,1726804842254,500.0,0.00022999,120]
[338620654,1726804842300,500.0,0.00022999,120]
[338620655,1726804842539,500.0,0.00022999,120]
[338620656,1726804842585,500.0,0.00022999,120]
[338620657,1726804842830,500.0,0.00022999,120]
[338620658,1726804842875,500.0,0.00022999,120]
[338620659,1726804842962,500.83642355,0.00022999,120]
[338620660,1726804843104,500.0,0.00022999,120]
[338620661,1726804843147,500.0,0.00022999,120]
[338620662,1726804843381,500.0,0.00022999,120]
[338620663,1726804843422,500.0,0.00022999,120]
[338620664,1726804843661,484.8650398,0.00022999,120]
[338620665,1726804843921,500.0,0.00022999,120]
[338620666,1726804844187,612.5735182,0.00022999,120]
[338620667,1726804845931,500.0,0.00022999,120]
[338620668,1726804846191,500.0,0.00022999,120]
[338620669,1726804846285,500.0,0.00022999,120]
[338620670,1726804846443,386.84396876,0.00022999,120]
[338620671,1726804846541,150.81686848,0.00022999,120]
[338620672,1726804847888,503.06066946,0.00022999,120]
[338620673,1726804848728,500.0,0.00022999,120]
[338620674,1726804848929,500.0,0.00022999,120]
[338620675,1726804848981,500.0,0.00022999,120]
[338620676,1726804849223,501.92714466,0.00022999,120]
[338620677,1726804849274,500.0,0.00022999,120]
[338620678,1726804849563,500.0,0.00022999,120]
[338620679,1726804849685,500.0,0.00022999,120]
[338620680,1726804849838,500.0,0.00022999,120]
[338620681,1726804850091,500.0,0.00022999,120]
[338620682,1726804850300,504.77787711,0.00022999,120]
[338620683,1726804850343,500.0,0.00022999,120]
[338620684,1726804850387,500.0,0.00022999,120]
[338620685,1726804850432,500.0,0.00022999,120]
[338620686,1726804850482,500.65228858,0.00022999,120]
[338620687,1726804850665,500.0,0.00022999,120]
[338620688,1726804850711,441.26273551,0.00022999,120]
[338620689,1726804850919,500.0,0.00022999,120]
[338620690,1726804851189,500.0,0.00022999,120]
[338620691,1726804851510,500.0,0.00022999,120]
[338620692,1726804851923,367.37982836,0.00022999,120]
[338620693,1726804852481,500.0,0.00022999,120]
[338620694,1726804852707,500.0,0.00022999,120]
[338620695,1726804852950,500.0,0.00022999,120]
[338620696,1726804852999,500.0,0.00022999,120]
[338620697,1726804853201,176.79737018,0.00022999,120]
[338620698,1726804853313,500.0,0.00022999,120]
[338620699,1726804853691,568.80337578,0.00022999,120]
[338620700,1726804853757,500.0,0.00022999,120]
[338620701,1726804853856,500.0,0.00022999,120]
[338620702,1726804854024,500.0,0.00022999,120]
[338620703,1726804854098,500.0,0.00022999,120]
[338620704,1726804854139,500.0,0.00022999,120]
[338620705,1726804854348,500.0,0.00022999,120]
[338620706,1726804854390,500.0,0.00022999,120]
[338620707,1726804854431,503.56523072,0.00022999,120]
[338620708,1726804854474,500.0,0.00022999,120]
[338620709,1726804854614,341.53652966,0.00022999,120]
[338620710,1726804854657,500.97087879,0.00022999,120]
[338620711,1726804854699,500.0,0.00022999,120]
[338620712,1726804854739,500.0,0.00022999,120]
[338620713,1726804854955,500.0,0.00022999,120]
[338620714,1726804854999,548.81030974,0.00022999,120]
[338620715,1726804855234,263.54385173,0.00022999,120]
[338620716,1726804855275,501.05969108,0.00022999,120]
[338620717,1726804855469,500.0,0.00022999,120]
[338620718,1726804855754,500.0,0.00022999,120]
[338620719,1726804856063,532.79760968,0.00022999,120]
[338620720,1726804856787,500.0,0.00022999,120]
[338620721,1726804857058,500.0,0.00022999,120]
[338620722,1726804857270,530.91407257,0.00022999,120]
[338620723,1726804857332,500.0,0.00022999,120]
[338620724,1726804857466,501.06757831,0.00022999,120]
[338620725,1726804857511,500.0,0.00022999,120]
[338620726,1726804857580,500.0,0.00022999,120]
[338620727,1726804857771,500.0,0.00022999,120]
[338620728,1726804857873,500.0,0.00022999,120]
[338620729,1726804857948,500.0,0.00022999,120]
[338620730,1726804858074,233.29633517,0.00022999,120]
[338620731,1726804858165,500.0,0.00022999,120]
[338620732,1726804858246,500.0,0.00022999,120]
[338620733,1726804858450,152.68432007,0.00022999,120]
[338620734,1726804858541,500.0,0.00022999,120]
[338620735,1726804858815,500.0,0.00022999,120]
[338620736,1726804859088,500.0,0.00022999,120]
[338620737,1726804859513,494.10657867,0.00022999,120]
[338620738,1726804859556,500.74411732,0.00022999,120]
[338620739,1726804859600,649.05278794,0.00022999,120]
[338620740,1726804860869,500.90051942,0.00022999,120]
[338620741,1726804861568,500.0,0.00022999,120]
[338620742,1726804861750,500.0,0.00022999,120]
[338620743,1726804861850,393.42193818,0.00022999,120]
[338620744,1726804862014,500.0,0.00022999,120]
[338620745,1726804862280,203.5012694,0.00022999,120]
[338620746,1726804862528,500.0,0.00022999,120]
[338620747,1726804862804,383.65671965,0.00022999,120]
[338620748,1726804865393,561.10010975,0.00022999,120]
[338620749,1726804865615,500.0,0.00022999,120]
[338620750,1726804865659,500.79022065,0.00022999,120]
[338620751,1726804865800,501.55142431,0.00022999,120]
[338620752,1726804866257,548.41097855,0.00022999,120]
[338620753,1726804866461,504.60021928,0.00022999,120]
[338620754,1726804867984,500.91674776,0.00022999,120]
[338620755,1726804868127,500.66527971,0.00022999,120]
[338620756,1726804870022,500.0,0.00022999,120]
[338620757,1726804870318,205.1042875,0.00022999,120]
[338620758,1726804870389,500.0,0.00022999,120]
[338620759,1726804870473,500.0,0.00022999,120]
[338620760,1726804870608,500.0,0.00022999,120]
[338620761,1726804870775,500.0,0.00022999,120]
[338620762,1726804870874,500.0,0.00022999,120]
[338620763,1726804871074,500.0,0.00022999,120]
[338620764,1726804871135,572.21703892,0.00022999,120]
[338620765,1726804871379,316.67127937,0.00022999,120]
[338620766,1726804872091,500.0,0.00022999,120]
[338620767,1726804872394,391.35094413,0.00022999,120]
[338620768,1726804872438,153.50410234,0.00022999,120]
[338620769,1726804872555,500.89864459,0.00022999,120]
[338620770,1726804873482,500.0,0.00022999,120]
[338620771,1726804873572,500.0,0.00022999,120]
[338620772,1726804873640,500.0,0.00022999,120]
[338620773,1726804873814,500.0,0.00022999,120]
[338620774,1726804873859,332.0484054,0.00022999,120]
[338620775,1726804873924,500.0,0.00022999,120]
[338620776,1726804874076,500.0,0.00022999,120]
[338620777,1726804874304,500.0,0.00022999,120]
[338620778,1726804874358,227.94149844,0.00022999,120]
[338620779,1726804874585,645.3442872,0.00022999,120]
[338620780,1726804874710,500.90132566,0.00022999,120]
[338620781,1726804875500,500.0,0.00022999,120]
[338620782,1726804875840,500.0,0.00022999,120]
[338620783,1726804875933,500.32454422,0.00022999,120]
[338620784,1726804876093,500.0,0.00022999,120]
[338620785,1726804876139,501.26917997,0.00022999,120]
[338620786,1726804876373,634.27862657,0.00022999,120]
[338620787,1726804876609,500.0,0.00022999,120]
[338620788,1726804876893,191.29773519,0.00022999,120]
[338620789,1726804877432,500.0,0.00022999,120]
[338620790,1726804877721,500.0,0.00022999,120]
[338620791,1726804878094,500.0,0.00022999,120]
[338620792,1726804878629,500.0,0.00022999,120]
[338620793,1726804878682,638.13643802,0.00022999,120]
[338620794,1726804878741,500.0,0.00022999,120]
[338620795,1726804879025,444.67039768,0.00022999,120]
[338620796,1726804879238,502.08215909,0.00022999,120]
[338620797,1726804880195,500.58118684,0.00022999,120]
[338620798,1726804880505,500.0,0.00022999,120]
[338620799,1726804880803,547.60389809,0.00022999,120]
[338620800,1726804880856,500.0,0.00022999,120]
[338620801,1726804881062,504.68903973,0.00022999,120]
[338620802,1726804881127,500.0,0.00022999,120]
[338620803,1726804881392,500.0,0.00022999,120]
[338620804,1726804881432,500.0,0.00022999,120]
[338620805,1726804881678,550.99902299,0.00022999,120]
[338620806,1726804881810,500.0,0.00022999,120]
[338620807,1726804882087,336.13300814,0.00022999,120]
[338620808,1726804882819,618.18725576,0.00022999,120]
[338620809,1726804883380,501.12175874,0.00022999,120]
[338620810,1726804883538,500.67187596,0.00022999,120]
[338620811,1726804884292,500.0,0.00022999,120]
[338620812,1726804884559,500.0,0.00022999,120]
[338620813,1726804884811,500.0,0.00022999,120]
[338620814,1726804884887,500.0,0.00022999,120]
[338620815,1726804885156,500.0,0.00022999,120]
[338620816,1726804885391,500.0,0.00022999,120]
[338620817,1726804885434,500.0,0.00022999,120]
[338620818,1726804885472,500.0,0.00022999,120]
[338620819,1726804885539,500.0,0.00022999,120]
[338620820,1726804885660,535.40319337,0.00022999,120]
[338620821,1726804885709,500.0,0.00022999,120]
[338620822,1726804885813,267.63426545,0.00022999,120]
[338620823,1726804885967,583.14332079,0.00022999,120]
[338620824,1726804886814,500.0,0.00022999,120]
[338620825,1726804887113,441.77481676,0.00022999,120]